fUST/lending_fUST_20250607
["ID","MTS","AMOUNT","RATE_DAILY","PERIOD"]
[364833815,1749264641968,-458.96,0.00020597,2]
[364833816,1749264641978,-440.0,0.00020597,2]
[364833817,1749264641988,-703.28,0.00020597,2]
[364833818,1749264641999,-860.21,0.00020597,2]
[364833819,1749264642009,-1042.28,0.00020599,2]
[364833820,1749264642019,-440.0,0.00020599,2]
[364833821,1749264642029,-898.98,0.00020599,2]
[364833822,1749264642039,-530.99,0.00020599,2]
[364833823,1749264642048,-440.0,0.00020599,2]
[364833824,1749264642057,-440.0,0.00020599,2]
[364833825,1749264642067,-440.0,0.00020599,2]
[364833826,1749264642077,-440.0,0.00020599,2]
[364833827,1749264642086,-440.0,0.00020599,2]
[364833828,1749264642096,-440.0,0.000206,2]
[364833829,1749264642105,-160.44,0.000206,2]
[364833830,1749264642114,-276.05,0.000206,2]
[364833831,1749264642124,-440.0,0.000206,2]
[364833832,1749264642133,-440.0,0.000206,2]
[364833833,1749264642143,-440.0,0.000206,2]
[364833834,1749264642153,-440.0,0.000206,2]
[364833835,1749264642163,-440.0,0.000206,2]
[364833836,1749264642175,-440.0,0.000206,2]
[364833837,1749264642185,-430.0,0.000206,2]
[364833838,1749264642195,-440.0,0.000206,2]
[364833839,1749264642205,-1081.04,0.00020601,2]
[364833840,1749264642215,-440.0,0.00020601,2]
[364833841,1749264642225,-440.0,0.00020601,2]
[364833842,1749264642235,-440.0,0.00020601,2]
[364833843,1749264642247,-440.0,0.00020601,2]
[364833844,1749264642256,-535.04,0.00020601,2]
[364833845,1749264642266,-440.0,0.00020601,2]
[364833846,1749264642277,-1182.58,0.00020601,2]
[364833847,1749264642287,-625.97,0.00020601,2]
[364833848,1749264642297,-248.66077652,0.00020657,2]
[364833849,1749264642307,-207.4,0.00020674,2]
[364833850,1749264642316,-778.67414065,0.00020762,3]
[364833851,1749264642327,-440.0,0.00020871,2]
[364833852,1749264642338,-209.54,0.00020871,2]
[364833853,1749264642350,-458.96,0.00020871,2]
[364833854,1749264642359,-440.0,0.00020871,2]
[364833855,1749264642370,-703.28,0.00020871,2]
[364833856,1749264642380,-860.21,0.00020871,2]
[364833857,1749264642392,-1042.28,0.00020873,2]
[364833858,1749264642402,-440.0,0.00020873,2]
[364833859,1749264642412,-898.98,0.00020873,2]
[364833860,1749264642423,-440.0,0.00020873,2]
[364833861,1749264642433,-440.0,0.00020873,2]
[364833862,1749264642443,-440.0,0.00020873,2]
[364833863,1749264642453,-440.0,0.00020873,2]
[364833864,1749264642463,-440.0,0.00020873,2]
[364833865,1749264642472,-440.0,0.00020874,2]
[364833866,1749264642482,-440.0,0.00020874,2]
[364833867,1749264642492,-440.0,0.00020874,2]
[364833868,1749264642502,-440.0,0.00020874,2]
[364833869,1749264642511,-440.0,0.00020874,2]
[364833870,1749264642522,-440.0,0.00020874,2]
[364833871,1749264642531,-272.67,0.00020874,2]
[364833872,1749264642542,-440.0,0.00020874,2]
[364833873,1749264642552,-1081.04,0.00020875,2]
[364833874,1749264642562,-440.0,0.00020875,2]
[364833875,1749264642572,-440.0,0.00020875,2]
[364833876,1749264642584,-440.0,0.00020875,2]
[364833877,1749264642594,-440.0,0.00020875,2]
[364833878,1749264642604,-535.04,0.00020875,2]
[364833879,1749264642615,-440.0,0.00020875,2]
[364833880,1749264642625,-1182.58,0.00020875,2]
[364833881,1749264642637,-625.97,0.00020875,2]
[364833882,1749264642646,-778.67414065,0.00020934,4]
[364833883,1749264642656,-420.0,0.0002095,2]
[364833884,1749264642667,-363.0,0.00020952,2]
[364833885,1749264642678,-751.674425,0.00020957,2]
[364833886,1749264642688,-751.674425,0.00020957,2]
[364833887,1749264642698,-500.0,0.00020989,2]
[364833888,1749264642707,-778.67414065,0.00021107,4]
[364833889,1749264642717,-458.96,0.00021145,2]
[364833890,1749264642729,-703.28,0.00021145,2]
[364833891,1749264642739,-860.21,0.00021145,2]
[364833892,1749264642748,-1042.28,0.00021147,2]
[364833893,1749264642758,-898.98,0.00021147,2]
[364833894,1749264642768,-97.41329102,0.00021147,2]
[364833896,1749264643190,-562.87197936,0.00019225,2]
[364833897,1749264643199,-500.0,0.00019225,2]
[364833898,1749264643211,-500.0,0.00019225,2]
[364833899,1749264643221,-344.85484492,0.00019225,2]
[364833900,1749264643232,-286.97744261,0.00019225,2]
[364833901,1749264643242,-500.0,0.00019225,2]
[364833902,1749264643255,-500.0,0.00019225,2]
[364833904,1749264643266,-500.0,0.00019225,2]
[364833905,1749264643276,-500.0,0.00019225,2]
[364833906,1749264643286,-500.0,0.00019225,2]
[364833908,1749264643296,-500.0,0.00019225,2]
[364833909,1749264643305,-391.14873423,0.00019225,2]
[364833910,1749264643315,-341.58237063,0.00019225,2]
[364833911,1749264643325,-444.11587854,0.00019225,2]
[364833912,1749264643335,-500.0,0.00019225,2]
[364833913,1749264643345,-500.0,0.00019225,2]
[364833914,1749264643356,-440.0,0.00019778,2]
[364833915,1749264643367,-432.98337971,0.00020052,2]
[364833916,1749264643377,-100.11118569,0.00021147,2]
[364833917,1749264643388,-440.0,0.00021147,2]
[364833918,1749264643398,-427.84063578,0.00021147,2]
[364833919,1749264643411,-12.15936422,0.00021147,2]
[364833920,1749264643422,-500.0,0.00021148,2]
[364833921,1749264643432,-440.0,0.00021148,2]
[364833922,1749264643442,-440.0,0.00021148,2]
[364833923,1749264643452,-440.0,0.00021149,2]
[364833924,1749264643463,-440.0,0.00021149,2]
[364833925,1749264643473,-436.38,0.00021149,2]
[364833926,1749264643483,-535.04,0.00021149,2]
[364833927,1749264643493,-440.0,0.00021149,2]
[364833928,1749264643503,-1182.58,0.00021149,2]
[364833929,1749264643514,-625.97,0.00021149,2]
[364833930,1749264643524,-337.84316889,0.00021153,2]
[364833931,1749264643537,-831.75229289,0.00021153,2]
[364833932,1749264643549,-778.67414065,0.00021279,5]
[364833933,1749264643560,-600.0,0.0002139,2]
[364833934,1749264643569,-500.0,0.0002139,2]
[364833935,1749264643579,-500.0,0.0002139,2]
[364833936,1749264643589,-99.65521722,0.0002139,2]
[364833937,1749264643602,-407.65398267,0.0002139,2]
[364833938,1749264643612,-123.84601733,0.00021419,2]
[364833939,1749264643624,-335.11398267,0.00021419,2]
[364833940,1749264643634,-332.47405247,0.00021419,2]
[364833941,1749264643647,-370.80594753,0.00021419,2]
[364833942,1749264643658,-860.21,0.00021419,2]
[364833943,1749264643668,-1042.28,0.00021421,2]
[364833944,1749264643678,-898.98,0.00021421,2]
[364833945,1749264643688,-440.0,0.00021421,2]
[364833946,1749264643699,-330.49,0.00021421,2]
[364833947,1749264643709,-248.66077652,0.00021421,2]
[364833948,1749264643720,-440.0,0.00021422,2]
[364833949,1749264643730,-421.95,0.00021422,2]
[364833950,1749264643740,-440.0,0.00021423,2]
[364833951,1749264643750,-440.0,0.00021423,2]
[364833952,1749264643760,-535.04,0.00021423,2]
[364833953,1749264643772,-440.0,0.00021423,2]
[364833954,1749264643782,-1182.58,0.00021423,2]
[364833955,1749264643793,-625.97,0.00021423,2]
[364833957,1749264643803,-440.0,0.00021424,2]
[364833958,1749264643813,-778.67414065,0.00021452,5]
[364833959,1749264643824,-1000.0,0.00021537,2]
[364833960,1749264643834,-594.119365,0.00021539,3]
[364833961,1749264643845,-152.88,0.000216,2]
[364833962,1749264643855,-778.67414065,0.00021624,5]
[364833963,1749264643866,-458.96,0.00021693,2]
[364833964,1749264643877,-703.28,0.00021693,2]
[364833965,1749264643889,-860.21,0.00021693,2]
[364833966,1749264643899,-1042.28,0.00021695,2]
[364833967,1749264643910,-898.98,0.00021695,2]
[364833968,1749264643922,-194.57,0.00021695,2]
[364833970,1749264644069,-440.0,0.00021696,2]
[364833971,1749264644080,-440.0,0.00021697,2]
[364833972,1749264644090,-440.0,0.00021697,2]
[364833973,1749264644100,-535.04,0.00021697,2]
[364833974,1749264644110,-440.0,0.00021697,2]
[364833975,1749264644126,-1182.58,0.00021697,2]
[364833976,1749264644136,-625.97,0.00021697,2]
[364833977,1749264644146,-443.9973696,0.00021698,2]
[364833978,1749264644156,-778.67414065,0.00021797,6]
[364833979,1749264644165,-963.0,0.00021797,2]
[364833980,1749264644180,-405.0,0.00021797,2]
[364833981,1749264644190,-1211.11547258,0.00021938,2]
[364833982,1749264644200,-1001.46457531,0.00021938,2]
[364833983,1749264644212,-866.36196202,0.00021938,2]
[364833984,1749264644224,-458.96,0.00021967,2]
[364833985,1749264644235,-703.28,0.00021967,2]
[364833986,1749264644247,-860.21,0.00021967,2]
[364833987,1749264644258,-778.67414065,0.00021969,6]
[364833988,1749264644269,-1042.28,0.00021969,2]
[364833989,1749264644278,-898.98,0.00021969,2]
[364833990,1749264644288,-440.0,0.0002197,2]
[364833991,1749264644299,-440.0,0.00021971,2]
[364833992,1749264644310,-440.0,0.00021971,2]
[364833993,1749264644320,-535.04,0.00021971,2]
[364833994,1749264644329,-440.0,0.00021971,2]
[364833995,1749264644339,-1182.58,0.00021971,2]
[364833996,1749264644350,-625.97,0.00021971,2]
[364833997,1749264644360,-21166.60609073,0.00022,7]
[364833998,1749264644373,-3535.11178867,0.00022,7]
[364833999,1749264644384,-1056.37985105,0.00022,7]
[364834006,1749264644540,-266.085,0.00020863,10]
[364834007,1749264644552,-70.095,0.00020863,10]
[364834008,1749264644562,-1392.96912754,0.00022,7]
[364834009,1749264644576,-4065.50502768,0.00022,7]
[364834010,1749264644586,-160.753912,0.00022,7]
[364834011,1749264644597,-517.26226,0.00022,7]
[364834012,1749264644607,-517.26226,0.00022,7]
[364834013,1749264644617,-638.0,0.00022,2]
[364834014,1749264644626,-751.674425,0.00022,2]
[364834015,1749264644636,-314.09344311,0.00022,2]
[364834016,1749264644648,-437.58098189,0.00022,2]
[364834017,1749264644659,-3116.4456983,0.00022,7]
[364834018,1749264645608,-437.01982406,0.00019229,2]
[364834019,1749264645618,-4435.77433414,0.00022,7]
[364834020,1749264645631,-374.03276725,0.00022,7]
[364834021,1749264645643,-1212.94581559,0.00022,7]
[364834105,1749264647563,-702.06664328,0.00022,7]
[364834106,1749264647575,-2010.67827717,0.00022,7]
[364834107,1749264647584,-781.0,0.00022012,2]
[364834108,1749264647593,-781.0,0.00022012,2]
[364834109,1749264647602,-781.0,0.00022013,2]
[364834110,1749264647611,-781.0,0.00022013,2]
[364834111,1749264647620,-781.0,0.00022013,2]
[364834112,1749264647629,-781.0,0.00022013,2]
[364834113,1749264647639,-781.0,0.00022013,2]
[364834114,1749264647648,-781.0,0.00022013,2]
[364834115,1749264647657,-781.0,0.00022013,2]
[364834116,1749264647667,-781.0,0.00022013,2]
[364834117,1749264647676,-781.0,0.00022013,2]
[364834118,1749264647686,-781.0,0.00022013,2]
[364834119,1749264647697,-781.0,0.00022013,2]
[364834120,1749264647707,-781.0,0.00022013,2]
[364834121,1749264647720,-781.0,0.00022013,2]
[364834122,1749264647729,-781.0,0.00022013,2]
[364834123,1749264647739,-781.0,0.00022013,2]
[364834124,1749264647748,-781.0,0.00022013,2]
[364834125,1749264647759,-781.0,0.00022014,2]
[364834126,1749264647769,-781.0,0.00022014,2]
[364834127,1749264647779,-781.0,0.00022014,2]
[364834128,1749264647790,-781.0,0.00022014,2]
[364834129,1749264647800,-781.0,0.00022014,2]
[364834130,1749264647809,-781.0,0.00022014,2]
[364834131,1749264647819,-781.0,0.00022014,2]
[364834132,1749264647829,-1169.59546178,0.00022027,2]
[364834133,1749264647840,-215.0738,0.00022043,2]
[364834134,1749264647850,-1500.0,0.00022085,2]
[364834135,1749264647859,-778.67414065,0.00022141,6]
[364834136,1749264647871,-248.66077652,0.00022186,2]
[364834137,1749264647880,-176.655,0.00022205,2]
[364834138,1749264647891,-458.96,0.00022241,2]
[364834139,1749264647900,-703.28,0.00022241,2]
[364834140,1749264647910,-860.21,0.00022241,2]
[364834141,1749264647919,-679.1700417,0.00022243,2]
[364834146,1749265203169,694.67771338,0.000161,2]
[364834151,1749265338433,379.0,0.00018,2]
[364834153,1749265477612,261.486923,0.00013699,2]
[364834158,1749265635129,-197.313269,0.00018289,2]
[364834159,1749265635157,-1200.0,0.00018585,2]
[364834160,1749265635179,-300.0,0.00018586,2]
[364834161,1749265635212,-300.0,0.00018586,2]
[364834162,1749265635242,-300.0,0.00018586,2]
[364834163,1749265635266,-2330.45993639,0.00018587,2]
[364834164,1749265652119,-4494.58628408,0.00018587,2]
[364834189,1749265831888,-300.0,0.00018307,2]
[364834191,1749265831899,-22918.16231775,0.00018308,2]
[364834193,1749265831912,-1981.83768225,0.00018308,2]
[364834195,1749265831925,-312.77457151,0.00018587,2]
[364834196,1749265831939,-1320.85925227,0.00018587,2]
[364834197,1749265832042,-1000.0,0.00018587,2]
[364834199,1749265832055,-267.88980492,0.00018587,2]
[364834238,1749265837812,-500.0,0.00018307,2]
[364834240,1749265837823,-463.74621118,0.00018307,2]
[364834242,1749265837834,-273.43015083,0.00018587,2]
[364834244,1749265837844,-150.0,0.000189,2]
[364834246,1749265837854,-186.49558239,0.00019123,2]
[364834248,1749265837864,-327.12398651,0.00019178,2]
[364834250,1749265837874,-1210.13,0.00019223,2]
[364834251,1749265837883,-440.0,0.00019223,2]
[364834253,1749265837892,-202.86243091,0.00019223,2]
[364834255,1749265837902,-440.0,0.00019223,2]
[364834257,1749265837911,-440.0,0.00019223,2]
[364834259,1749265837922,-440.0,0.00019223,2]
[364834261,1749265837931,-440.0,0.00019223,2]
[364834263,1749265837942,-448.44,0.00019223,2]
[364834265,1749265837952,-9451.10468411,0.00019225,2]
[364834267,1749265837962,-430.0,0.00019225,2]
[364834269,1749265837972,-360.0,0.00019225,2]
[364834271,1749265837982,-630.92,0.00019225,2]
[364834273,1749265837992,-440.0,0.00019225,2]
[364834275,1749265838001,-539.22,0.00019225,2]
[364834277,1749265838011,-440.0,0.00019225,2]
[364834279,1749265838021,-406.99619169,0.00019225,2]
[364834280,1749265838030,-440.0,0.00019225,2]
[364834282,1749265838041,-440.0,0.00019225,2]
[364834284,1749265838050,-440.0,0.00019225,2]
[364834286,1749265838060,-440.0,0.00019225,2]
[364834288,1749265838069,-372.46185574,0.00019225,2]
[364834290,1749265838079,-440.0,0.00019225,2]
[364834292,1749265838089,-320.0,0.00019225,2]
[364834294,1749265838100,-440.0,0.00019225,2]
[364834296,1749265838110,-765.74,0.00019225,2]
[364834298,1749265838121,-440.0,0.00019225,2]
[364834300,1749265838131,-440.0,0.00019226,2]
[364834302,1749265838141,-430.0,0.00019226,2]
[364834304,1749265838151,-440.0,0.00019226,2]
[364834306,1749265838161,-430.0,0.00019226,2]
[364834308,1749265838170,-430.0,0.00019226,2]
[364834310,1749265838180,-430.0,0.00019226,2]
[364834312,1749265838189,-430.0,0.00019226,2]
[364834314,1749265838199,-430.0,0.00019226,2]
[364834316,1749265838209,-430.0,0.00019226,2]
[364834318,1749265838218,-440.0,0.00019226,2]
[364834319,1749265838228,-440.0,0.00019226,2]
[364834321,1749265838238,-430.0,0.00019226,2]
[364834323,1749265838247,-440.0,0.00019226,2]
[364834325,1749265838257,-440.0,0.00019226,2]
[364834327,1749265838267,-440.0,0.00019226,2]
[364834329,1749265838277,-440.0,0.00019226,2]
[364834330,1749265838287,-440.0,0.00019226,2]
[364834331,1749265838297,-440.0,0.00019228,2]
[364834333,1749265838306,-440.0,0.00019228,2]
[364834335,1749265838319,-440.0,0.00019228,2]
[364834337,1749265838328,-440.0,0.00019228,2]
[364834339,1749265838338,-684.71,0.00019228,2]
[364834340,1749265838348,-440.0,0.00019228,2]
[364834341,1749265838510,-500.0,0.00019496,2]
[364834342,1749265838523,-572.7080029,0.00019496,2]
[364834343,1749265838538,-47.48105597,0.00019496,2]
[364834344,1749265838549,-1210.13,0.00019497,2]
[364834345,1749265838561,-440.0,0.00019497,2]
[364834346,1749265838573,-440.0,0.00019497,2]
[364834347,1749265838586,-448.44,0.00019497,2]
[364834348,1749265838596,-18.78790108,0.00019499,2]
[364834349,1749265838609,-612.13209892,0.00019499,2]
[364834350,1749265838619,-28.87647692,0.00019499,2]
[364834351,1749265838633,-510.34352308,0.00019499,2]
[364834352,1749265838642,-440.0,0.00019499,2]
[364834353,1749265838654,-440.0,0.00019499,2]
[364834354,1749265838664,-765.74,0.00019499,2]
[364834355,1749265838675,-350.0,0.000195,2]
[364834356,1749265838685,-440.0,0.000195,2]
[364834357,1749265838694,-440.0,0.00019502,2]
[364834358,1749265838704,-351.25058776,0.00019502,2]
[364834359,1749265838713,-440.0,0.00019502,2]
[364834360,1749265838723,-440.0,0.00019502,2]
[364834361,1749265838732,-684.71,0.00019502,2]
[364834362,1749265838743,-440.0,0.00019502,2]
[364834363,1749265838753,-152.774083,0.00019639,2]
[364834364,1749265838762,-500.0,0.00019656,2]
[364834365,1749265838772,-130.33617903,0.00019714,2]
[364834366,1749265838785,-19.66382097,0.00019714,2]
[364834367,1749265838796,-501.90918228,0.0001975,2]
[364834368,1749265838807,-500.0,0.0001976,2]
[364834369,1749265838817,-1210.13,0.00019771,2]
[364834370,1749265838827,-440.0,0.00019771,2]
[364834371,1749265838837,-440.0,0.00019771,2]
[364834372,1749265838847,-448.44,0.00019771,2]
[364834373,1749265838856,-630.92,0.00019773,2]
[364834374,1749265838867,-395.01634989,0.00019773,2]
[364834411,1749265840126,-144.20365011,0.00019773,2]
[364834413,1749265840136,-440.0,0.00019773,2]
[364834416,1749265840146,-765.74,0.00019773,2]
[364834418,1749265840156,-440.0,0.00019774,2]
[364834420,1749265840166,-440.0,0.00019776,2]
[364834421,1749265840176,-440.0,0.00019776,2]
[364834422,1749265840185,-102.39073121,0.00019776,2]
[364834423,1749265840198,-324.97025148,0.00019776,2]
[364834424,1749265840210,-257.34901731,0.00019776,2]
[364834425,1749265840222,-440.0,0.00019776,2]
[364834426,1749265840232,-300.1558125,0.00019843,2]
[364834427,1749265840242,-346.34665242,0.000199,2]
[364834428,1749265840258,-236.54096245,0.000199,2]
[364834429,1749265840268,-229.56495552,0.00019953,2]
[364834430,1749265840277,-834.52263295,0.00019954,2]
[364834431,1749265840287,-213.01382694,0.00019956,2]
[364834432,1749265840296,-160.0,0.00019956,2]
[364834433,1749265840307,-177.53588843,0.00019969,2]
[364834434,1749265840319,-242.46411157,0.00019969,2]
[364834435,1749265840329,-199.15093688,0.0002,5]
[364834436,1749265840339,-1210.13,0.00020045,2]
[364834437,1749265840349,-440.0,0.00020045,2]
[364834438,1749265840360,-440.0,0.00020045,2]
[364834439,1749265840371,-357.49591477,0.00020045,2]
[364834440,1749265840386,-90.94408523,0.00020045,2]
[364834441,1749265840396,-630.92,0.00020047,2]
[364834442,1749265840406,-539.22,0.00020047,2]
[364834443,1749265840415,-440.0,0.00020047,2]
[364834444,1749265840425,-765.74,0.00020047,2]
[364834445,1749265840436,-440.0,0.00020048,2]
[364834446,1749265840445,-440.0,0.0002005,2]
[364834447,1749265840456,-440.0,0.0002005,2]
[364834448,1749265840467,-684.71,0.0002005,2]
[364834449,1749265840479,-440.0,0.0002005,2]
[364834450,1749265840490,-500.0,0.00020052,2]
[364834451,1749265840501,-582.88761469,0.00020072,2]
[364834452,1749265840510,-207.4,0.00020082,2]
[364834453,1749265840519,-164.08,0.00020146,2]
[364834454,1749265840528,-261.486923,0.00020187,2]
[364834455,1749265840538,-582.88761469,0.00020245,2]
[364834456,1749265840547,-125.94509764,0.00020268,2]
[364834457,1749265840559,-174.05490236,0.00020268,2]
[364834458,1749265840569,-392.52105883,0.00020308,2]
[364834459,1749265840584,-111.38903665,0.00020308,2]
[364834460,1749265840594,-1210.13,0.00020319,2]
[364834461,1749265840603,-440.0,0.00020319,2]
[364834462,1749265840614,-440.0,0.00020319,2]
[364834463,1749265840625,-25.99739303,0.00020319,2]
[364834464,1749265840637,-422.44260697,0.00020319,2]
[364834466,1749265840648,-630.92,0.00020321,2]
[364834468,1749265840658,-539.22,0.00020321,2]
[364834470,1749265840668,-440.0,0.00020321,2]
[364834471,1749265840678,-488.65423028,0.00020321,2]
[364834486,1749265843063,-277.08576972,0.00020321,2]
[364834487,1749265843074,-26.40104428,0.00020322,2]
[364834488,1749265843086,-413.59895572,0.00020322,2]
[364834489,1749265843096,-440.0,0.00020324,2]
[364834490,1749265843106,-295.3020681,0.00020324,2]
[364834491,1749265843118,-144.6979319,0.00020324,2]
[364834492,1749265843129,-684.71,0.00020324,2]
[364834493,1749265843138,-440.0,0.00020324,2]
[364834494,1749265843148,-582.88761469,0.00020417,3]
[364834495,1749265843159,-582.88761469,0.0002059,3]
[364834496,1749265843169,-1210.13,0.00020593,2]
[364834497,1749265843178,-440.0,0.00020593,2]
[364834498,1749265843189,-440.0,0.00020593,2]
[364834499,1749265843200,-255.1808152,0.00020593,2]
[364834504,1749265846008,-193.2591848,0.00020593,2]
[364834505,1749265846018,-630.92,0.00020595,2]
[364834506,1749265846028,-539.22,0.00020595,2]
[364834507,1749265846038,-440.0,0.00020595,2]
[364834508,1749265846047,-765.74,0.00020595,2]
[364834509,1749265846057,-440.0,0.00020596,2]
[364834510,1749265846067,-440.0,0.00020598,2]
[364834511,1749265846076,-440.0,0.00020598,2]
[364834512,1749265846087,-684.71,0.00020598,2]
[364834513,1749265846097,-440.0,0.00020598,2]
[364834514,1749265846106,-582.88761469,0.00020762,3]
[364834515,1749265846116,-1210.13,0.00020867,2]
[364834516,1749265846126,-440.0,0.00020867,2]
[364834517,1749265846136,-440.0,0.00020867,2]
[364834518,1749265846146,-448.44,0.00020867,2]
[364834519,1749265846156,-630.92,0.00020869,2]
[364834520,1749265846165,-539.22,0.00020869,2]
[364834521,1749265846175,-440.0,0.00020869,2]
[364834522,1749265846184,-765.74,0.00020869,2]
[364834523,1749265846194,-440.0,0.0002087,2]
[364834524,1749265846204,-440.0,0.00020872,2]
[364834525,1749265846214,-440.0,0.00020872,2]
[364834526,1749265846223,-684.71,0.00020872,2]
[364834527,1749265846233,-440.0,0.00020872,2]
[364834528,1749265846242,-186.49558239,0.00020905,2]
[364834529,1749265846252,-582.88761469,0.00020934,4]
[364834530,1749265846262,-582.88761469,0.00021107,4]
[364834531,1749265846272,-1210.13,0.00021141,2]
[364834532,1749265846282,-440.0,0.00021141,2]
[364834533,1749265846291,-440.0,0.00021141,2]
[364834534,1749265846301,-448.44,0.00021141,2]
[364834535,1749265846310,-468.7985108,0.00021143,2]
[364834539,1749266530522,248.862809,0.00013699,2]
[364834545,1749266826125,-248.9058569,0.00018053,2]
[364834546,1749266826147,-201.00758388,0.00018152,2]
[364834547,1749266826170,-948.5920308,0.00018252,2]
[364834548,1749266826192,-2855.9744329,0.00018255,2]
[364834549,1749266826215,-326.34507386,0.00018761,2]
[364834550,1749266835095,-1004.28495964,0.00018761,2]
[364834551,1749266835116,-150.0,0.000189,2]
[364834552,1749266835137,-433.2578762,0.00018983,2]
[364834553,1749266835159,-300.0,0.00019174,2]
[364834554,1749266835180,-300.0,0.00019174,2]
[364834555,1749266835204,-500.0,0.00019174,2]
[364834556,1749266835226,-457.66882882,0.00019174,2]
[364834557,1749266835247,-300.0,0.00019175,2]
[364834558,1749266835269,-300.0,0.00019175,2]
[364834559,1749266835291,-300.0,0.00019175,2]
[364834560,1749266835312,-145.39214483,0.00019175,2]
[364834566,1749266968155,-250.7541781,0.00018232,2]
[364834567,1749266968178,-7793.75922646,0.00018246,2]
[364834629,1749267032506,-300.0,0.00018245,2]
[364834630,1749267032517,-300.0,0.00018245,2]
[364834631,1749267032527,-300.0,0.00018245,2]
[364834632,1749267032537,-1200.0,0.00018245,2]
[364834633,1749267032546,-17106.24077354,0.00018246,2]
[364834634,1749267032556,-208.374579,0.00018767,2]
[364834635,1749267032566,-150.0,0.000189,2]
[364834636,1749267032576,-1285.57,0.00019178,2]
[364834637,1749267032585,-440.0,0.00019178,2]
[364834638,1749267032595,-440.0,0.00019178,2]
[364834639,1749267032605,-587.05,0.00019178,2]
[364834640,1749267032615,-440.0,0.00019178,2]
[364834641,1749267032625,-440.0,0.00019178,2]
[364834642,1749267032634,-440.0,0.00019178,2]
[364834643,1749267032644,-440.0,0.00019178,2]
[364834644,1749267032654,-806.76,0.00019178,2]
[364834645,1749267032664,-337.23127082,0.00019178,2]
[364834646,1749267032673,-500.0,0.00019178,2]
[364834647,1749267032694,-440.0,0.00019178,2]
[364834648,1749267032705,-758.23,0.00019178,2]
[364834649,1749267032716,-440.0,0.00019178,2]
[364834650,1749267032726,-440.0,0.00019178,2]
[364834651,1749267032738,-420.0,0.00019178,2]
[364834652,1749267032750,-440.0,0.00019178,2]
[364834653,1749267032760,-440.0,0.00019178,2]
[364834654,1749267032770,-856.75205105,0.00019178,2]
[364834655,1749267032783,-80.88794895,0.00019178,2]
[364834656,1749267032793,-523.41,0.00019178,2]
[364834657,1749267032803,-440.0,0.00019178,2]
[364834658,1749267032813,-487.43,0.00019178,2]
[364834659,1749267032824,-302.1168335,0.00019178,2]
[364834660,1749267032834,-3932.24976051,0.00019178,2]
[364834672,1749267038042,-2349.43925535,0.00019178,2]
[364834678,1749267038097,-3231.14384178,0.00019178,2]
[364834681,1749267038109,-421.71508938,0.00019178,2]
[364834686,1749267038154,-4321.23275455,0.00019178,2]
[364834688,1749267038164,-1285.57,0.00019452,2]
[364834690,1749267038174,-440.0,0.00019452,2]
[364834692,1749267038183,-440.0,0.00019452,2]
[364834694,1749267038192,-587.05,0.00019452,2]
[364834697,1749267038202,-440.0,0.00019452,2]
[364834699,1749267038216,-440.0,0.00019452,2]
[364834701,1749267038225,-806.76,0.00019452,2]